fUST/lending_fUST_20250618
["ID","MTS","AMOUNT","RATE_DAILY","PERIOD"]
[366446591,1750258243021,-151.0,0.00025217,7]
[366446592,1750258243030,-151.0,0.00025217,7]
[366446595,1750258243040,-151.0,0.00025217,7]
[366446597,1750258243050,-151.0,0.00025217,7]
[366446598,1750258243059,-151.0,0.00025217,7]
[366446600,1750258243068,-209.945874,0.00025217,7]
[366446602,1750258243078,-151.0,0.00025217,7]
[366446604,1750258243088,-151.0,0.00025217,7]
[366446605,1750258243097,-151.0,0.00025217,7]
[366446606,1750258243107,-273.863253,0.00025217,7]
[366446607,1750258243116,-151.0,0.00025217,7]
[366446608,1750258243126,-151.0,0.00025217,7]
[366446609,1750258243137,-257.411507,0.00025217,2]
[366446611,1750258243147,-257.411507,0.00025217,2]
[366446612,1750258243156,-257.411507,0.00025217,2]
[366446614,1750258243167,-257.411507,0.00025217,2]
[366446616,1750258243176,-257.411507,0.00025217,2]
[366446618,1750258243186,-257.411507,0.00025217,2]
[366446620,1750258243195,-257.411507,0.00025217,2]
[366446622,1750258243205,-257.411507,0.00025217,2]
[366446624,1750258243215,-257.411507,0.00025217,2]
[366446627,1750258243225,-257.411507,0.00025217,2]
[366446629,1750258243236,-257.411507,0.00025217,2]
[366446631,1750258243245,-257.411507,0.00025217,2]
[366446633,1750258243255,-257.411507,0.00025217,2]
[366446635,1750258243264,-257.411507,0.00025217,2]
[366446636,1750258243274,-257.411507,0.00025217,2]
[366446638,1750258243284,-257.411507,0.00025217,2]
[366446641,1750258243294,-257.411507,0.00025217,2]
[366446642,1750258243303,-257.411507,0.00025217,2]
[366446645,1750258243314,-257.411507,0.00025217,2]
[366446646,1750258243323,-257.411515,0.00025217,2]
[366446649,1750258243333,-151.0,0.00025217,7]
[366446651,1750258243343,-151.0,0.00025217,7]
[366446652,1750258243353,-151.0,0.00025217,7]
[366446655,1750258243363,-151.0,0.00025217,7]
[366446657,1750258243373,-151.0,0.00025217,7]
[366446659,1750258243382,-151.0,0.00025217,7]
[366446660,1750258243392,-151.0,0.00025217,7]
[366446662,1750258243401,-151.0,0.00025217,7]
[366446664,1750258243411,-151.0,0.00025217,7]
[366446666,1750258243420,-151.0,0.00025217,7]
[366446668,1750258243429,-151.0,0.00025217,7]
[366446670,1750258243439,-151.0,0.00025217,7]
[366446672,1750258243448,-151.0,0.00025217,7]
[366446674,1750258243458,-151.0,0.00025217,7]
[366446676,1750258243468,-151.0,0.00025217,7]
[366446678,1750258243477,-151.0,0.00025217,7]
[366446680,1750258243487,-290.505112,0.00025217,7]
[366446681,1750258243496,-152.213498,0.00025217,7]
[366446682,1750258243506,-156.735834,0.00025217,7]
[366446683,1750258243515,-285.78694,0.00025217,7]
[366446684,1750258243524,-151.0,0.00025217,7]
[366446685,1750258243534,-151.0,0.00025217,7]
[366446686,1750258243544,-151.0,0.00025217,7]
[366446688,1750258243554,-151.0,0.00025217,7]
[366446690,1750258243566,-151.0,0.00025217,7]
[366446691,1750258243575,-151.0,0.00025217,7]
[366446692,1750258243584,-151.0,0.00025217,7]
[366446693,1750258243594,-300.373604,0.00025217,7]
[366446694,1750258243603,-321.435962,0.00025217,7]
[366446695,1750258243613,-321.435962,0.00025217,7]
[366446696,1750258243623,-321.435962,0.00025217,7]
[366446697,1750258243633,-321.435962,0.00025217,7]
[366446698,1750258243643,-321.435962,0.00025217,7]
[366446699,1750258243652,-321.435962,0.00025217,7]
[366446700,1750258243662,-321.435962,0.00025217,7]
[366446701,1750258243671,-321.435962,0.00025217,7]
[366446702,1750258243681,-321.435962,0.00025217,7]
[366446703,1750258243690,-321.435962,0.00025217,7]
[366446704,1750258243700,-321.435962,0.00025217,7]
[366446705,1750258243710,-321.435962,0.00025217,7]
[366446706,1750258243719,-321.435962,0.00025217,7]
[366446707,1750258243729,-321.435962,0.00025217,7]
[366446708,1750258243739,-321.435962,0.00025217,7]
[366446709,1750258243748,-321.435962,0.00025217,7]
[366446710,1750258243758,-321.435962,0.00025217,7]
[366446711,1750258243767,-321.435962,0.00025217,7]
[366446712,1750258243776,-321.435962,0.00025217,7]
[366446713,1750258243786,-321.43596,0.00025217,7]
[366446714,1750258243795,-171.135863,0.00025217,7]
[366446715,1750258243809,-171.135863,0.00025217,7]
[366446716,1750258243818,-171.135863,0.00025217,7]
[366446717,1750258243828,-171.135863,0.00025217,7]
[366446718,1750258243837,-171.135863,0.00025217,7]
[366446719,1750258243848,-171.135863,0.00025217,7]
[366446720,1750258243857,-171.135863,0.00025217,7]
[366446721,1750258243866,-171.135863,0.00025217,7]
[366446722,1750258243875,-171.135863,0.00025217,7]
[366446723,1750258243886,-171.135863,0.00025217,7]
[366446724,1750258243896,-171.135863,0.00025217,7]
[366446725,1750258243906,-171.135863,0.00025217,7]
[366446726,1750258243915,-171.135863,0.00025217,7]
[366446727,1750258243924,-171.135863,0.00025217,7]
[366446728,1750258243934,-171.135863,0.00025217,7]
[366446729,1750258243943,-171.135863,0.00025217,7]
[366446730,1750258243955,-171.135863,0.00025217,7]
[366446731,1750258243970,-171.135863,0.00025217,7]
[366446732,1750258243984,-171.135863,0.00025217,7]
[366446733,1750258243998,-171.135871,0.00025217,7]
[366446734,1750258244009,-151.0,0.00025221,7]
[366446735,1750258244021,-151.0,0.00025221,7]
[366446736,1750258244035,-151.0,0.00025221,7]
[366446737,1750258244047,-151.0,0.00025221,7]
[366446738,1750258244060,-151.0,0.00025221,7]
[366446739,1750258244073,-151.0,0.00025221,7]
[366446740,1750258244085,-151.0,0.00025221,7]
[366446741,1750258244098,-213.842984,0.00025221,7]
[366446742,1750258244111,-151.0,0.00025221,7]
[366446743,1750258244126,-151.0,0.00025221,7]
[366446744,1750258244138,-301.746836,0.00025221,7]
[366446745,1750258244151,-151.0,0.00025221,7]
[366446746,1750258244163,-151.0,0.00025221,7]
[366446747,1750258244176,-260.67427,0.00025221,7]
[366446748,1750258244190,-151.0,0.00025221,7]
[366446749,1750258244203,-151.0,0.00025221,7]
[366446750,1750258244216,-151.0,0.00025221,7]
[366446751,1750258244227,-151.0,0.00025221,7]
[366446752,1750258244243,-151.0,0.00025221,7]
[366446753,1750258244257,-151.0,0.00025221,7]
[366446754,1750258244271,-151.0,0.00025221,7]
[366446755,1750258244286,-151.0,0.00025221,7]
[366446756,1750258244300,-151.0,0.00025221,7]
[366446757,1750258244315,-151.0,0.00025221,7]
[366446758,1750258244330,-151.0,0.00025221,7]
[366446759,1750258244344,-151.0,0.00025221,7]
[366446760,1750258244357,-151.0,0.00025221,7]
[366446761,1750258244371,-151.0,0.00025221,7]
[366446762,1750258244382,-151.0,0.00025221,7]
[366446763,1750258244393,-151.0,0.00025221,7]
[366446764,1750258244403,-151.0,0.00025221,7]
[366446765,1750258244416,-196.864617,0.00025221,7]
[366446766,1750258244431,-151.0,0.00025221,7]
[366446767,1750258244444,-151.0,0.00025221,7]
[366446768,1750258244458,-151.0,0.00025221,7]
[366446769,1750258244469,-151.0,0.00025221,7]
[366446770,1750258244483,-151.0,0.00025221,7]
[366446771,1750258244498,-151.0,0.00025221,7]
[366446772,1750258244512,-151.0,0.00025221,7]
[366446773,1750258244524,-151.0,0.00025221,7]
[366446774,1750258244536,-151.0,0.00025221,7]
[366446775,1750258244547,-151.0,0.00025221,7]
[366446776,1750258244558,-202.049964,0.00025221,7]
[366446777,1750258244570,-151.0,0.00025221,7]
[366446778,1750258244581,-151.0,0.00025221,7]
[366446779,1750258244593,-151.0,0.00025221,7]
[366446780,1750258244604,-151.0,0.00025221,7]
[366446781,1750258244616,-151.0,0.00025221,7]
[366446782,1750258244627,-151.0,0.00025221,7]
[366446783,1750258244639,-151.0,0.00025221,7]
[366446784,1750258244658,-151.0,0.00025221,7]
[366446785,1750258244671,-151.0,0.00025221,7]
[366446786,1750258244683,-151.0,0.00025221,7]
[366446787,1750258244694,-151.0,0.00025221,7]
[366446788,1750258244707,-151.0,0.00025221,7]
[366446789,1750258244718,-151.0,0.00025221,7]
[366446790,1750258244729,-151.0,0.00025221,7]
[366446791,1750258244744,-151.0,0.00025221,7]
[366446792,1750258244755,-151.0,0.00025221,7]
[366446793,1750258244767,-151.0,0.00025221,7]
[366446794,1750258244778,-151.0,0.00025221,7]
[366446795,1750258244789,-151.0,0.00025221,7]
[366446796,1750258244802,-151.0,0.00025221,7]
[366446797,1750258244816,-151.0,0.00025221,7]
[366446798,1750258244827,-151.0,0.00025221,7]
[366446799,1750258244838,-151.0,0.00025221,7]
[366446800,1750258244851,-151.0,0.00025221,7]
[366446801,1750258244862,-151.0,0.00025221,7]
[366446802,1750258244873,-151.0,0.00025221,7]
[366446803,1750258244886,-212.988123,0.00025221,7]
[366446804,1750258244898,-151.0,0.00025221,7]
[366446805,1750258244909,-151.0,0.00025221,7]
[366446806,1750258244920,-4901.67571656,0.00025223,2]
[366446807,1750258244932,-11251.21920778,0.00025223,2]
[366446808,1750258244944,-949543.45986302,0.00025224,20]
[366446809,1750258244989,-65512.27384643,0.00025224,20]
[366446810,1750258245001,-2987.7751089,0.00025224,20]
[366446811,1750258245012,-869.77412244,0.00025224,20]
[366446812,1750258245024,-743.90629355,0.00025224,20]
[366446842,1750258246092,-181.08302307,0.00021917,6]
[366446844,1750258246105,-632.50697693,0.00021917,6]
[366446846,1750258246114,-1566.61340375,0.00025224,20]
[366446848,1750258246125,-25190.0000001,0.00025224,20]
[366446850,1750258246136,-2204.05165894,0.00025224,20]
[366446852,1750258246149,-655.86,0.00025224,20]
[366446855,1750258246160,-749.8638399,0.00025224,20]
[366446857,1750258246172,-6309.2075714,0.00025224,20]
[366446929,1750258247334,-35.62503705,0.00021158,2]
[366446931,1750258247347,-389.08083043,0.00021158,2]
[366446933,1750258247357,-460.0,0.00021917,6]
[366446935,1750258247367,-813.59,0.00022191,6]
[366446937,1750258247380,-460.0,0.00022191,6]
[366446939,1750258247392,-813.59,0.00022465,6]
[366446941,1750258247403,-813.59,0.00022739,6]
[366446943,1750258247412,-813.59,0.00023013,6]
[366446945,1750258247422,-813.59,0.00023287,6]
[366446947,1750258247432,-249.539,0.00023413,2]
[366446949,1750258247442,-250.0,0.00023413,2]
[366446951,1750258247452,-813.59,0.00023561,6]
[366446953,1750258247461,-813.59,0.00023835,6]
[366446955,1750258247471,-813.59,0.00024109,6]
[366446957,1750258247480,-365.5483814,0.00024247,2]
[366446959,1750258247491,-813.59,0.00024383,6]
[366446961,1750258247501,-354.146424,0.00024384,2]
[366446963,1750258247510,-1147.9989108,0.00024384,2]
[366446965,1750258247520,-813.59,0.00024657,6]
[366446967,1750258247530,-813.59,0.00024931,6]
[366446969,1750258247540,-813.59,0.00025205,6]
[366446971,1750258247549,-19215.1727804,0.00025224,20]
[366446979,1750258247620,-544.73,0.00025217,2]
[366446995,1750258247767,-89.21681983,0.00025217,2]
[366447070,1750258328625,1000.0,0.00024,120]
[366447082,1750258446412,600.0,0.00024,120]
[366447083,1750258467693,600.0,0.000244,120]
[366447087,1750258509829,239.0,0.00025224,120]
[366447118,1750258537281,582.0,0.00025214,120]
[366447135,1750258960148,161.149502,0.00013699,2]
[366447141,1750259137908,168.3649542,0.00018964,2]
[366447143,1750259228131,-175.97,0.000196,2]
[366447144,1750259228153,-160.0,0.00019792,2]
[366447145,1750259228177,-300.0,0.00019898,2]
[366447146,1750259228200,-500.0,0.00019899,2]
[366447147,1750259228222,-481.46470952,0.00019899,2]
[366447148,1750259228247,-500.0,0.00019899,2]
[366447149,1750259228274,-500.0,0.00019899,2]
[366447150,1750259228298,-500.0,0.00019899,2]
[366447151,1750259228324,-500.0,0.00019899,2]
[366447152,1750259228346,-541.88810657,0.00019899,2]
[366447153,1750259228370,-500.0,0.00019899,2]
[366447154,1750259228394,-500.0,0.00019899,2]
[366447155,1750259228420,-96.80439166,0.00019899,2]
[366447156,1750259239130,-403.19560834,0.00019899,2]
[366447157,1750259239156,-500.0,0.00019899,2]
[366447158,1750259239179,-598.87756399,0.00019899,2]
[366447159,1750259239205,-500.0,0.00019899,2]
[366447160,1750259239230,-500.0,0.00019899,2]
[366447161,1750259239255,-500.0,0.00019899,2]
[366447162,1750259239279,-500.0,0.00019899,2]
[366447163,1750259239302,-500.0,0.00019899,2]
[366447164,1750259239326,-500.0,0.00019899,2]
[366447165,1750259239349,-500.0,0.00019899,2]
[366447166,1750259239374,-602.97084533,0.00019899,2]
[366447167,1750259239397,-351.80068747,0.00019899,2]
[366447168,1750259239422,-500.0,0.00019899,2]
[366447169,1750259239444,-168.01522086,0.000199,2]
[366447170,1750259239583,-1742.00992919,0.000199,2]
[366447171,1750259244103,-36417.19075958,0.000199,2]
[366447172,1750259252977,1000.0,0.00024657,120]
[366447173,1750259284388,1000.0,0.00023,30]
[366447174,1750259297998,1019.60979411,0.000189,2]
[366447175,1750259303986,1013.7215508,0.00023,30]
[366447176,1750259341708,679.73986274,0.000189,2]
[366447177,1750259347098,-300.0,0.00019899,2]
[366447178,1750259347132,-2554.542824,0.000199,2]
[366447179,1750259357234,-1602.15065482,0.000199,2]
[366447180,1750259357258,-177.85256559,0.000199,2]
[366447181,1750259357283,-222.23425526,0.000199,2]
[366447182,1750259357308,-371.74502114,0.000199,2]
[366447183,1750259357334,-511.01555662,0.000199,2]
[366447184,1750259357359,-300.0,0.0001996,2]
[366447185,1750259357385,-1200.0,0.0001996,2]
[366447186,1750259357409,-300.0,0.0001996,2]
[366447187,1750259357433,-18328.82956409,0.0001996,2]
[366447188,1750259357664,-177.65306267,0.0001996,2]
[366447189,1750259357701,-400.33009393,0.0001996,2]
[366447190,1750259357725,-372.42229861,0.0001996,2]
[366447191,1750259357747,-471.11250847,0.00019973,2]
[366447192,1750259357769,-234.23725887,0.00019973,2]
[366447195,1750259369085,-267.11719396,0.00019973,2]
[366447196,1750259369107,-500.0,0.00019973,2]
[366447197,1750259369130,-500.0,0.00019973,2]
[366447198,1750259369151,-503.04139861,0.00019973,2]
[366447199,1750259369172,-183.63291143,0.00019973,2]
[366447200,1750259370243,-317.443049,0.00019973,2]
[366447201,1750259370264,-500.0,0.00019973,2]
[366447202,1750259370285,-508.50880777,0.00019973,2]
[366447203,1750259370305,-505.38040956,0.00019973,2]
[366447204,1750259370325,-501.31127163,0.00019973,2]
[366447205,1750259370345,-500.0,0.00019973,2]
[366447206,1750259370366,-595.24926172,0.00019973,2]
[366447207,1750259370386,-809.68,0.0001999,3]
[366447208,1750259370407,-404.84,0.0001999,3]
[366447209,1750259370428,-202.42,0.0001999,3]
[366447210,1750259370449,-607.31,0.0001999,3]
[366447211,1750259370469,-345.39,0.0001999,3]
[366447212,1750259370489,-1037.42909163,0.0001999,2]
[366447213,1750259370509,-517.63,0.0001999,3]
[366447214,1750259370529,-838.58,0.0001999,3]
[366447215,1750259370550,-200.0,0.00019999,2]
[366447216,1750259370570,-342551.48076663,0.0002,2]
[366447217,1750259374072,-701200.7212,0.0002,2]
[366447243,1750259432268,-1105.13,0.00019932,2]
[366447244,1750259432278,-500.0,0.00019973,2]
[366447245,1750259432288,-463.49965797,0.00019973,2]
[366447248,1750259432412,-36.50034203,0.00019973,2]
[366447249,1750259432421,-500.0,0.00019973,2]
[366447250,1750259432431,-500.0,0.00019973,2]
[366447251,1750259432440,-500.0,0.00019973,2]
[366447252,1750259432449,-512.79628993,0.00019973,2]
[366447253,1750259432459,-1200.0,0.00019999,2]
[366447254,1750259432470,-41339.42201152,0.0002,2]
[366447255,1750259432601,-12601.61748413,0.0002,2]
[366447256,1750259432613,-982.98324396,0.0002,2]
[366447257,1750259432626,-314.54692683,0.0002,2]
[366447258,1750259432649,-1159.91442991,0.0002,2]
[366447259,1750259432660,-488.1269753,0.0002,2]
[366447260,1750259432672,-49701.52106581,0.0002,2]
[366447478,1750259438187,-472.31,0.0001999,3]
[366447480,1750259438197,-1297.88913375,0.0002,2]
[366447482,1750259438208,-512.63,0.0002,2]
[366447484,1750259438221,-1494.98186009,0.0002,2]
[366447486,1750259438232,-2538.18963609,0.0002,2]
[366447489,1750259438244,-1302.40698985,0.0002,2]
[366447508,1750259438422,-42095.33201581,0.0002,2]
[366447510,1750259438438,-3185813.11040015,0.0002,2]
[366447512,1750259438447,-151.0,0.0002,2]
[366447514,1750259438457,-1663.54915666,0.0002,2]
[366447516,1750259438467,-4000.0,0.0002,4]
[366447518,1750259438477,-151.0,0.0002,2]
[366447520,1750259438487,-151.0,0.0002,2]
[366447522,1750259438497,-1000.0,0.00020053,2]
[366447524,1750259438506,-1663.54915656,0.00020107,2]
[366447526,1750259438517,-238.735223,0.00020162,2]
[366447528,1750259438526,-1663.54915656,0.00020314,3]
[366447530,1750259438536,-511.01555658,0.00020481,2]
[366447532,1750259438546,-1000.0,0.00020521,2]
[366447533,1750259438555,-1000.0,0.00020521,2]
[366447534,1750259438564,-1000.0,0.00020521,2]
[366447535,1750259438574,-1000.0,0.00020521,2]
[366447536,1750259438583,-1663.54915656,0.00020521,3]
[366447537,1750259438592,-87209.23,0.000206,2]
[366447538,1750259438601,-785.78,0.000206,2]
[366447539,1750259438610,-500.0,0.00020673,2]
[366447540,1750259438620,-263.33307088,0.00020673,2]
[366447541,1750259438629,-258.88328461,0.00020673,2]
[366447542,1750259438638,-263.91590451,0.00020673,2]
[366447543,1750259438648,-260.52055968,0.00020673,2]
[366447544,1750259438657,-402.48944577,0.00020673,2]
[366447545,1750259438666,-258.90370042,0.00020673,2]
[366447546,1750259438675,-500.0,0.00020673,2]
[366447547,1750259438684,-500.0,0.00020673,2]
[366447548,1750259438694,-24900.0,0.00020698,2]
[366447549,1750259438703,-1663.54915656,0.00020728,3]
[366447550,1750259438712,-331.81304512,0.00020789,2]
[366447551,1750259438721,-1000.0,0.000208,2]
[366447552,1750259438730,-1663.54915656,0.00020934,4]
[366447553,1750259438740,-161.149502,0.00020951,2]
[366447554,1750259438749,-4000.0,0.00021,4]
[366447555,1750259438759,-511.01555658,0.00021062,2]
[366447556,1750259438768,-1068.15800652,0.00021068,2]
[366447557,1750259438777,-680.51225315,0.00021068,2]
[366447558,1750259438786,-1500.0,0.00021068,2]
[366447559,1750259438795,-1663.54915656,0.00021141,4]
[366447560,1750259438805,-1057.10211095,0.00021221,2]
[366447561,1750259438813,-1663.54915656,0.00021348,5]
[366447562,1750259438822,-944.62,0.0002136,3]
[366447563,1750259438832,-160.0,0.00021508,2]
[366447565,1750259438841,-160.0,0.00021549,2]
[366447566,1750259438850,-160.0,0.00021552,2]
[366447567,1750259438860,-213.43818883,0.00021552,2]
[366447569,1750259438869,-1663.54915656,0.00021555,5]
[366447570,1750259438879,-160.0,0.00021569,2]
[366447572,1750259438888,-845.78193577,0.00021569,2]
[366447574,1750259438897,-229.98435572,0.00021569,2]
[366447576,1750259438907,-500.0,0.00021616,2]
[366447578,1750259438916,-511.01555658,0.00021644,2]
[366447580,1750259438925,-420.0,0.00021735,2]
[366447582,1750259438934,-160.0,0.00021741,2]
[366447584,1750259438944,-835.98428123,0.00021741,2]
[366447586,1750259438953,-424.70586748,0.00021741,2]
[366447588,1750259438963,-160.0,0.00021741,2]
[366447590,1750259438973,-12542.39314967,0.00021741,2]
[366447593,1750259438983,-2210.26,0.00021744,2]
[366447595,1750259438993,-1663.54915656,0.00021762,5]
[366447597,1750259439003,-1533.0,0.00021881,2]
[366447599,1750259439013,-500.0,0.00021916,2]
[366447601,1750259439023,-1000.0,0.00021916,2]
[366447603,1750259439032,-1000.0,0.00021916,2]
[366447605,1750259439042,-1000.0,0.00021916,2]
[366447606,1750259439051,-1000.0,0.00021916,2]
[366447609,1750259439061,-160.0,0.00021916,2]
[366447610,1750259439071,-430.86821487,0.00021917,6]
[366447613,1750259439081,-440.0,0.00021917,6]
[366447614,1750259439091,-460.0,0.00021917,6]
[366447616,1750259439101,-460.0,0.00021917,6]
[366447618,1750259439110,-380.0,0.00021917,6]
[366447620,1750259439119,-440.0,0.00021917,6]
[366447622,1750259439129,-460.0,0.00021917,6]
[366447625,1750259439142,-460.0,0.00021917,6]
[366447627,1750259439151,-374.94200632,0.00021917,6]
[366447629,1750259439161,-321.4019422,0.00021917,6]
[366447631,1750259439171,-465.64352795,0.00021917,6]
[366447632,1750259439181,-460.0,0.00021917,6]
[366447634,1750259439191,-460.0,0.00021917,6]
[366447637,1750259439200,-460.0,0.00021917,6]
[366447638,1750259439210,-460.0,0.00021917,6]
[366447640,1750259439221,-460.0,0.00021917,6]
[366447642,1750259439231,-460.0,0.00021917,6]
[366447644,1750259439240,-460.0,0.00021917,6]
[366447646,1750259439249,-460.0,0.00021917,6]
[366447648,1750259439259,-185.74958061,0.00021917,6]
[366447650,1750259439269,-460.0,0.00021917,6]
[366447652,1750259439278,-460.0,0.00021917,6]
[366447654,1750259439287,-460.0,0.00021917,6]
[366447656,1750259439297,-460.0,0.00021917,6]
[366447658,1750259439307,-436.99421621,0.00021917,6]
[366447660,1750259439317,-430.0,0.00021917,6]
[366447662,1750259439326,-430.0,0.00021917,6]
[366447664,1750259439335,-220.43372406,0.00021917,6]
[366447666,1750259439344,-487.53904802,0.00021917,6]
[366447668,1750259439353,-460.0,0.00021917,6]
[366447670,1750259439363,-460.0,0.00021917,6]
[366447672,1750259439372,-460.0,0.00021917,6]
[366447674,1750259439382,-460.0,0.00021917,6]
[366447676,1750259439391,-460.0,0.00021917,6]
[366447678,1750259439400,-284.77963585,0.00021917,6]
[366447680,1750259439410,-460.0,0.00021917,6]
[366447682,1750259439420,-430.0,0.00021917,6]
[366447684,1750259439429,-460.0,0.00021917,6]
[366447686,1750259439438,-460.0,0.00021917,6]
[366447688,1750259439447,-460.0,0.00021917,6]
[366447690,1750259439457,-460.0,0.00021917,6]
[366447692,1750259439466,-460.0,0.00021917,6]
[366447694,1750259439475,-430.0,0.00021917,6]
[366447696,1750259439485,-460.0,0.00021917,6]
[366447697,1750259439495,-460.0,0.00021917,6]
[366447699,1750259439504,-460.0,0.00021917,6]
[366447701,1750259439514,-460.0,0.00021917,6]
[366447704,1750259439523,-460.0,0.00021917,6]
[366447705,1750259439533,-460.0,0.00021917,6]
[366447707,1750259439543,-430.0,0.00021917,6]
[366447709,1750259439551,-450.0,0.00021917,6]
[366447711,1750259439561,-240.0,0.00021917,6]
[366447713,1750259439570,-541.6903197,0.00021917,6]
[366447715,1750259439580,-460.0,0.00021917,6]
[366447716,1750259439589,-316.52925184,0.00021917,6]
[366447718,1750259439598,-325.37708043,0.00021917,6]
[366447719,1750259439607,-460.0,0.00021917,6]
[366447720,1750259439617,-460.0,0.00021917,6]
[366447721,1750259439627,-310.0,0.00021917,6]
[366447722,1750259439636,-460.0,0.00021917,6]
[366447723,1750259439645,-460.0,0.00021917,6]
[366447724,1750259439654,-460.0,0.00021917,6]
[366447725,1750259439663,-420.0,0.00021917,6]
[366447726,1750259439673,-460.0,0.00021917,6]
[366447727,1750259439683,-460.0,0.00021917,6]
[366447728,1750259439693,-460.0,0.00021917,6]
[366447729,1750259439703,-566.56623394,0.00021917,6]
[366447730,1750259439712,-460.0,0.00021917,6]
[366447731,1750259439721,-460.0,0.00021917,6]
[366447732,1750259439730,-460.0,0.00021917,6]
[366447733,1750259439739,-460.0,0.00021917,6]
[366447734,1750259439752,-460.0,0.00021917,6]
[366447735,1750259439763,-460.0,0.00021917,6]
[366447736,1750259439772,-460.0,0.00021917,6]
[366447737,1750259439782,-254.06125883,0.00021917,6]
[366447738,1750259439792,-460.0,0.00021917,6]
[366447739,1750259439801,-460.0,0.00021917,6]
[366447740,1750259439811,-540.39180069,0.00021917,6]
[366447741,1750259439821,-460.0,0.00021917,6]
[366447742,1750259439831,-460.0,0.00021917,6]
[366447743,1750259439841,-460.0,0.00021917,6]
[366447744,1750259439850,-460.0,0.00021917,6]
[366447745,1750259439859,-460.0,0.00021917,6]
[366447746,1750259439868,-430.93983685,0.00021917,6]
[366447747,1750259439878,-460.0,0.00021917,6]
[366447748,1750259439888,-440.0,0.00021917,6]
[366447749,1750259439897,-440.0,0.00021917,6]
[366447750,1750259439907,-431.98597586,0.00021917,6]
[366447751,1750259439916,-460.0,0.00021917,6]
[366447752,1750259439926,-431.27618514,0.00021917,6]
[366447753,1750259439935,-430.0,0.00021917,6]
[366447754,1750259439945,-460.0,0.00021917,6]
[366447755,1750259439955,-460.0,0.00021917,6]
[366447756,1750259439964,-460.0,0.00021917,6]
[366447757,1750259439974,-420.0,0.00021917,6]
[366447758,1750259439983,-460.0,0.00021917,6]
[366447759,1750259439992,-463.54242438,0.00021917,6]
[366447760,1750259440002,-500.0,0.00021917,6]
[366447761,1750259440011,-500.0,0.00021917,6]
[366447762,1750259440021,-500.0,0.00021917,6]
[366447763,1750259440030,-500.0,0.00021917,6]
[366447764,1750259440039,-450.0,0.00021917,6]
[366447765,1750259440048,-500.0,0.00021917,6]
[366447766,1750259440057,-621.24040478,0.00021917,6]
[366447767,1750259440067,-460.0,0.00021917,6]
[366447768,1750259440076,-318.86678483,0.00021917,6]
[366447769,1750259440086,-440.0,0.00021917,6]
[366447770,1750259440096,-443.50844061,0.00021917,6]
[366447771,1750259440106,-425.96863246,0.00021917,6]
[366447772,1750259440115,-460.0,0.00021917,6]
[366447773,1750259440126,-460.0,0.00021917,6]
[366447774,1750259440141,-444.61426903,0.00021917,6]
[366447775,1750259440154,-236.12549281,0.00021917,6]
[366447776,1750259440164,-460.0,0.00021917,6]
[366447777,1750259440173,-460.0,0.00021917,6]
[366447778,1750259440184,-460.0,0.00021917,6]
[366447780,1750259440193,-460.0,0.00021917,6]
[366447781,1750259440203,-440.90517857,0.00021917,6]
[366447782,1750259440212,-460.0,0.00021917,6]